fUST/lending_fUST_20240829
["ID","MTS","AMOUNT","RATE_DAILY","PERIOD"]
[336474672,1724862649613,-500.0,0.00019928,2]
[336474673,1724862649624,-500.0,0.00019928,2]
[336474674,1724862649633,-500.0,0.00019928,2]
[336474675,1724862649649,-500.0,0.00019928,2]
[336474676,1724862649659,-500.0,0.00019928,2]
[336474677,1724862649669,-500.0,0.00019928,2]
[336474678,1724862649680,-500.0,0.00019928,2]
[336474679,1724862649690,-500.0,0.00019928,2]
[336474680,1724862649703,-500.0,0.00019928,2]
[336474681,1724862649713,-474.42078293,0.00019928,2]
[336474682,1724862649723,-17038.44607889,0.00019974,2]
[336474683,1724862649733,-500.0,0.0001998,2]
[336474684,1724862649743,-600.0,0.00019989,2]
[336474685,1724862649753,-6443.88970206,0.0001999,2]
[336474686,1724862649762,-23633.03262479,0.0001999,2]
[336474687,1724862649773,-156.72438319,0.0002,2]
[336474688,1724862649782,-154.65203293,0.0002,2]
[336474689,1724862649792,-150.112233,0.0002,4]
[336474690,1724862649802,-150.112233,0.0002,2]
[336474691,1724862649812,-17017.96786183,0.0002,2]
[336474700,1724863635147,-306.98992311,0.00014247,2]
[336474701,1724863636881,-443.01007689,0.00014247,2]
[336474702,1724863636904,-500.0,0.00016068,2]
[336474703,1724863636925,-1450.91436315,0.00018044,2]
[336474704,1724863644106,-1420.36317425,0.00018044,2]
[336474705,1724863644131,-195.957411,0.00018095,2]
[336474706,1724863644155,-904.65337,0.00018143,2]
[336474707,1724863644177,-493.776631,0.00018146,2]
[336474708,1724863644201,-195.957411,0.00018409,2]
[336474709,1724863644224,-500.0,0.00018464,2]
[336474710,1724863644248,-195.957411,0.00018724,2]
[336474711,1724863644271,-635.420904,0.00018904,2]
[336474712,1724863644295,-195.957411,0.00019038,2]
[336474713,1724863644317,-162.331416,0.00019178,2]
[336474714,1724863644338,-154.74467129,0.00019373,2]
[336474715,1724863644361,-201.85681518,0.00019463,2]
[336474716,1724863644384,-300.0,0.00019499,2]
[336474717,1724863644405,-490.8614176,0.000195,2]
[336474718,1724863672160,-153.66,0.000249,31]
[336474719,1724863672186,-153.66,0.000249,31]
[336474720,1724863672213,-153.66,0.000249,31]
[336474721,1724863672242,-153.66,0.000249,31]
[336474722,1724863672270,-153.66,0.000249,31]
[336474723,1724863672296,-153.66,0.000249,31]
[336474724,1724863672322,-153.66,0.000249,31]
[336474725,1724863672347,-153.66,0.000249,31]
[336474726,1724863672372,-153.66,0.000249,31]
[336474727,1724863672403,-2912.51583613,0.00025,30]
[336474728,1724863672435,-153.66,0.000253,31]
[336474729,1724863672466,-153.66,0.000253,31]
[336474730,1724863672492,-153.66,0.000253,31]
[336474731,1724863672519,-153.66,0.000253,31]
[336474732,1724863672546,-153.66,0.000253,31]
[336474733,1724863672570,-153.66,0.000253,31]
[336474734,1724863672595,-153.66,0.000253,31]
[336474735,1724863672622,-153.66,0.000253,31]
[336474736,1724863672655,-153.66,0.000253,31]
[336474737,1724863672682,-153.66,0.000253,31]
[336474738,1724863672707,-153.66,0.000253,31]
[336474739,1724863672733,-153.66,0.000253,31]
[336474740,1724863672758,-153.66,0.000253,31]
[336474741,1724863672976,-153.66,0.000253,31]
[336474742,1724863673008,-153.66,0.000257,31]
[336474743,1724863673036,-153.66,0.000257,31]
[336474744,1724863673063,-153.66,0.000257,31]
[336474745,1724863673089,-153.66,0.000257,31]
[336474746,1724863673116,-153.66,0.000257,31]
[336474747,1724863673144,-153.66,0.000257,31]
[336474748,1724863673169,-153.66,0.000257,31]
[336474749,1724863673201,-153.66,0.000257,31]
[336474750,1724863673228,-153.66,0.000257,31]
[336474751,1724863673255,-153.66,0.000257,31]
[336474752,1724863673281,-153.66,0.000257,31]
[336474753,1724863673308,-153.66,0.000257,31]
[336474754,1724863673335,-153.66,0.000257,31]
[336474755,1724863673363,-153.66,0.000257,31]
[336474756,1724863673395,-153.66,0.000262,31]
[336474757,1724863673421,-153.66,0.000262,31]
[336474758,1724863673448,-153.66,0.000262,31]
[336474759,1724863673475,-153.66,0.000262,31]
[336474760,1724863673505,-153.66,0.000262,31]
[336474761,1724863673531,-153.66,0.000262,31]
[336474762,1724863673559,-153.66,0.000262,31]
[336474763,1724863673602,-153.66,0.000262,31]
[336474764,1724863673633,-153.66,0.000262,31]
[336474765,1724863673664,-153.66,0.000262,31]
[336474766,1724863673692,-153.66,0.000262,31]
[336474767,1724863673719,-153.66,0.000262,31]
[336474768,1724863673746,-153.66,0.000262,31]
[336474769,1724863673773,-153.66,0.000262,31]
[336474770,1724863673798,-2661.3588,0.00026535,30]
[336474771,1724863673825,-153.66,0.000266,31]
[336474772,1724863673852,-153.66,0.000266,31]
[336474773,1724863673881,-153.66,0.000266,31]
[336474774,1724863673907,-153.66,0.000266,31]
[336474775,1724863673934,-153.66,0.000266,31]
[336474776,1724863673965,-153.66,0.000266,31]
[336474777,1724863673991,-153.66,0.000266,31]
[336474778,1724863674016,-256.80834657,0.0002661,30]
[336474779,1724863674047,-239.66970193,0.00027,120]
[336474780,1724863674073,-187.04192486,0.00027,120]
[336474781,1724863674104,-400.0,0.00027397,60]
[336474782,1724863674129,-700.0,0.00028,120]
[336474783,1724863674158,-381.32238279,0.00028493,120]
[336474784,1724863674182,-317.866602,0.00028493,33]
[336474785,1724863674212,-317.866602,0.00028493,39]
[336474786,1724863674239,-317.866602,0.00028493,45]
[336474787,1724863674263,-317.866602,0.00028493,51]
[336474788,1724863674292,-317.866602,0.00028493,57]
[336474789,1724863674316,-317.866602,0.00028493,64]
[336474790,1724863674342,-317.866602,0.00028493,70]
[336474791,1724863674366,-317.866602,0.00028493,76]
[336474792,1724863674390,-317.866602,0.00028493,82]
[336474793,1724863674420,-317.866602,0.00028493,88]
[336474794,1724863674445,-317.866602,0.00028493,95]
[336474795,1724863674470,-317.866602,0.00028493,101]
[336474796,1724863674495,-317.866602,0.00028493,107]
[336474797,1724863674518,-317.866602,0.00028493,113]
[336474798,1724863674542,-317.866602,0.00028493,120]
[336474799,1724863674566,-399.2509,0.00028535,30]
[336474800,1724863674591,-2001.00004796,0.00028767,120]
[336474801,1724863674617,-528.08,0.00029,120]
[336474802,1724863674645,-753.53874272,0.0002988,30]
[336474803,1724863674670,-171.36666667,0.0003,120]
[336474804,1724863674693,-151.0,0.0003,120]
[336474805,1724863674717,-200.0,0.0003,120]
[336474806,1724863674740,-204.47341404,0.0003,30]
[336474807,1724863674763,-450.0,0.0003,120]
[336474808,1724863674786,-735.0,0.0003,120]
[336474809,1724863674809,-213.39827418,0.0003,30]
[336474810,1724863674837,-400.0,0.00030137,60]
[336474811,1724863674886,-200.0,0.00030625,120]
[336474812,1724863674914,-171.36666667,0.00030986,120]
[336474813,1724863674938,-300.0,0.00031,120]
[336474814,1724863674962,-151.0,0.00031452,120]
[336474815,1724863674986,-171.36666667,0.00031973,120]
[336474816,1724863675010,-150.0,0.00032,30]
[336474817,1724863675034,-700.0,0.00032,120]
[336474818,1724863675058,-24328.94986744,0.00032212,60]
[336474819,1724863675083,-10646.844,0.000325,120]
[336474820,1724863675108,-10646.844,0.000325,120]
[336474821,1724863675132,-10646.844,0.000325,120]
[336474822,1724863675156,-10646.844,0.000325,120]
[336474823,1724863675180,-10646.845,0.000325,120]
[336474824,1724863675205,-170.68905639,0.00032756,120]
[336474825,1724863675229,-1000.0,0.00032876,30]
[336474826,1724863675254,-1040.57618289,0.00032876,30]
[336474827,1724863675277,-400.0,0.00032877,60]
[336474828,1724863675302,-675.0,0.000329,30]
[336474829,1724863675328,-151.0,0.00032904,120]
[336474830,1724863675355,-171.36666667,0.00032959,120]
[336474831,1724863675381,-150.0,0.00033,30]
[336474832,1724863675408,-377.5007082,0.00033,120]
[336474833,1724863675432,-200.0,0.000335,120]
[336474834,1724863675458,-5000.0,0.00033627,44]
[336474835,1724863675482,-5000.0,0.00033627,39]
[336474836,1724863675506,-171.36666667,0.00033945,120]
[336474837,1724863675531,-200.0,0.00034,30]
[336474838,1724863675556,-700.0,0.00034,120]
[336474839,1724863675578,-200.0,0.00034,30]
[336474840,1724863675601,-485.839738,0.00034,30]
[336474841,1724863675775,-151.0,0.00034356,120]
[336474842,1724863675803,-171.36666667,0.00034932,120]
[336474843,1724863675827,-165.48403319,0.00035,120]
[336474844,1724863675851,-202.79133652,0.00035,30]
[336474845,1724863675877,-553.21292809,0.00035,120]
[336474846,1724863675902,-2000.0,0.00035,60]
[336474847,1724863675927,-2606.0,0.00035,60]
[336474848,1724863675951,-200.0,0.00035,30]
[336474849,1724863675975,-1337.0,0.00035,120]
[336474850,1724863676000,-3000.0,0.00035,120]
[336474851,1724863676025,-1002.12542,0.00035,30]
[336474852,1724863676050,-1755.88447221,0.00035068,30]
[336474853,1724863676075,-500.0,0.00035616,120]
[336474854,1724863676100,-500.0,0.00035616,120]
[336474855,1724863676124,-500.0,0.00035616,120]
[336474856,1724863676150,-500.0,0.00035616,120]
[336474857,1724863676176,-500.0,0.00035616,120]
[336474858,1724863676201,-500.0,0.00035616,120]
[336474859,1724863676225,-500.0,0.00035616,120]
[336474860,1724863676250,-500.0,0.00035616,120]
[336474861,1724863676275,-500.0,0.00035616,120]
[336474862,1724863676301,-500.0,0.00035616,120]
[336474863,1724863676327,-500.0,0.00035616,120]
[336474864,1724863676356,-500.0,0.00035616,120]
[336474865,1724863676386,-500.0,0.00035616,120]
[336474866,1724863676420,-500.0,0.00035616,120]
[336474867,1724863676451,-500.0,0.00035616,120]
[336474868,1724863676481,-500.0,0.00035616,120]
[336474869,1724863676508,-500.0,0.00035616,120]
[336474870,1724863676535,-550.87208088,0.00035616,120]
[336474871,1724863676563,-400.0,0.00035616,60]
[336474872,1724863676590,-2655.116978,0.00035616,120]
[336474873,1724863676618,-153.0,0.00035644,120]
[336474874,1724863676645,-153.0,0.00035644,120]
[336474875,1724863676676,-153.0,0.00035644,120]
[336474876,1724863676702,-153.0,0.00035644,120]
[336474877,1724863676727,-153.0,0.00035644,120]
[336474878,1724863676752,-153.0,0.00035644,120]
[336474879,1724863676778,-197.0,0.00035644,120]
[336474880,1724863676804,-197.0,0.00035644,120]
[336474881,1724863676833,-197.0,0.00035644,120]
[336474882,1724863676860,-197.0,0.00035644,120]
[336474883,1724863676889,-197.0,0.00035644,120]
[336474884,1724863676919,-197.0,0.00035644,120]
[336474885,1724863676944,-197.0,0.00035644,120]
[336474886,1724863676970,-197.0,0.00035644,120]
[336474887,1724863676994,-197.0,0.00035644,120]
[336474888,1724863677018,-197.0,0.00035644,120]
[336474889,1724863677043,-197.0,0.00035644,120]
[336474890,1724863677067,-197.0,0.00035644,120]
[336474891,1724863677092,-153.0,0.00035644,120]
[336474892,1724863677116,-153.0,0.00035644,120]
[336474893,1724863677141,-153.0,0.00035644,120]
[336474894,1724863677172,-153.0,0.00035644,120]
[336474895,1724863677196,-153.0,0.00035644,120]
[336474896,1724863677225,-153.0,0.00035644,120]
[336474897,1724863677252,-153.0,0.00035644,120]
[336474898,1724863677276,-197.0,0.00035644,120]
[336474899,1724863677301,-197.0,0.00035644,120]
[336474900,1724863677325,-197.0,0.00035644,120]
[336474901,1724863677351,-197.0,0.00035644,120]
[336474902,1724863677376,-197.0,0.00035644,120]
[336474903,1724863677408,-197.0,0.00035644,120]
[336474904,1724863677435,-197.0,0.00035644,120]
[336474905,1724863677460,-197.0,0.00035644,120]
[336474906,1724863677486,-197.0,0.00035644,120]
[336474907,1724863677511,-197.0,0.00035644,120]
[336474908,1724863677537,-197.0,0.00035644,120]
[336474909,1724863677563,-197.0,0.00035644,120]
[336474910,1724863677591,-197.0,0.00035644,120]
[336474911,1724863677620,-197.0,0.00035644,120]
[336474912,1724863677654,-153.0,0.00035644,120]
[336474913,1724863677681,-153.0,0.00035644,120]
[336474914,1724863677708,-153.0,0.00035644,120]
[336474915,1724863677734,-153.0,0.00035644,120]
[336474916,1724863677760,-153.0,0.00035644,120]
[336474917,1724863677785,-153.0,0.00035644,120]
[336474918,1724863677810,-153.0,0.00035644,120]
[336474919,1724863677835,-197.0,0.00035644,120]
[336474920,1724863677861,-197.0,0.00035644,120]
[336474921,1724863677890,-197.0,0.00035644,120]
[336474922,1724863677920,-197.0,0.00035644,120]
[336474923,1724863677946,-197.0,0.00035644,120]
[336474924,1724863677972,-197.0,0.00035644,120]
[336474925,1724863677997,-197.0,0.00035644,120]
[336474926,1724863678022,-197.0,0.00035644,120]
[336474927,1724863678049,-197.0,0.00035644,120]
[336474928,1724863678074,-197.0,0.00035644,120]
[336474929,1724863678100,-197.0,0.00035644,120]
[336474930,1724863678124,-197.0,0.00035644,120]
[336474931,1724863678150,-197.0,0.00035644,120]
[336474932,1724863678174,-197.0,0.00035644,120]
[336474933,1724863678197,-153.0,0.00035644,120]
[336474934,1724863678223,-153.0,0.00035644,120]
[336474935,1724863678249,-153.0,0.00035644,120]
[336474936,1724863678273,-153.0,0.00035644,120]
[336474937,1724863678297,-153.0,0.00035644,120]
[336474938,1724863678322,-153.0,0.00035644,120]
[336474939,1724863678347,-153.0,0.00035644,120]
[336474940,1724863678371,-197.0,0.00035644,120]
[336474941,1724863678398,-197.0,0.00035644,120]
[336474942,1724863678422,-197.0,0.00035644,120]
[336474943,1724863678447,-197.0,0.00035644,120]
[336474944,1724863678473,-197.0,0.00035644,120]
[336474945,1724863678658,-197.0,0.00035644,120]
[336474946,1724863678684,-197.0,0.00035644,120]
[336474947,1724863678709,-197.0,0.00035644,120]
[336474948,1724863678735,-197.0,0.00035644,120]
[336474949,1724863678760,-197.0,0.00035644,120]
[336474950,1724863678787,-197.0,0.00035644,120]
[336474951,1724863678811,-197.0,0.00035644,120]
[336474952,1724863678836,-197.0,0.00035644,120]
[336474953,1724863678862,-197.0,0.00035644,120]
[336474954,1724863678889,-153.0,0.00035644,120]
[336474955,1724863678918,-153.0,0.00035644,120]
[336474956,1724863678944,-153.0,0.00035644,120]
[336474957,1724863678968,-153.0,0.00035644,120]
[336474958,1724863678993,-153.0,0.00035644,120]
[336474959,1724863679019,-153.0,0.00035644,120]
[336474960,1724863679046,-153.0,0.00035644,120]
[336474961,1724863679073,-197.0,0.00035644,120]
[336474962,1724863679097,-197.0,0.00035644,120]
[336474963,1724863679122,-197.0,0.00035644,120]
[336474964,1724863679148,-197.0,0.00035644,120]
[336474965,1724863679173,-197.0,0.00035644,120]
[336474966,1724863679197,-197.0,0.00035644,120]
[336474967,1724863679223,-197.0,0.00035644,120]
[336474968,1724863679247,-197.0,0.00035644,120]
[336474969,1724863679273,-197.0,0.00035644,120]
[336474970,1724863679298,-197.0,0.00035644,120]
[336474971,1724863679322,-197.0,0.00035644,120]
[336474972,1724863679346,-197.0,0.00035644,120]
[336474973,1724863679371,-197.0,0.00035644,120]
[336474974,1724863679395,-197.0,0.00035644,120]
[336474975,1724863679421,-153.0,0.00035644,120]
[336474976,1724863679445,-153.0,0.00035644,120]
[336474977,1724863679470,-153.0,0.00035644,120]
[336474978,1724863679493,-153.0,0.00035644,120]
[336474979,1724863679518,-153.0,0.00035644,120]
[336474980,1724863679543,-153.0,0.00035644,120]
[336474981,1724863679568,-153.0,0.00035644,120]
[336474982,1724863679592,-197.0,0.00035644,120]
[336474983,1724863679618,-197.0,0.00035644,120]
[336474984,1724863679644,-197.0,0.00035644,120]
[336474985,1724863679681,-197.0,0.00035644,120]
[336474986,1724863679706,-197.0,0.00035644,120]
[336474987,1724863679729,-197.0,0.00035644,120]
[336474988,1724863679754,-197.0,0.00035644,120]
[336474989,1724863679780,-197.0,0.00035644,120]
[336474990,1724863679804,-197.0,0.00035644,120]
[336474991,1724863679830,-197.0,0.00035644,120]
[336474992,1724863679855,-197.0,0.00035644,120]
[336474993,1724863679884,-197.0,0.00035644,120]
[336474994,1724863679913,-197.0,0.00035644,120]
[336474995,1724863679940,-197.0,0.00035644,120]
[336474996,1724863679967,-153.0,0.00035644,120]
[336474997,1724863679993,-153.0,0.00035644,120]
[336474998,1724863680018,-153.0,0.00035644,120]
[336474999,1724863680044,-153.0,0.00035644,120]
[336475000,1724863680070,-153.0,0.00035644,120]
[336475001,1724863680096,-153.0,0.00035644,120]
[336475002,1724863680120,-153.0,0.00035644,120]
[336475003,1724863680145,-197.0,0.00035644,120]
[336475004,1724863680172,-197.0,0.00035644,120]
[336475005,1724863680199,-197.0,0.00035644,120]
[336475006,1724863680226,-197.0,0.00035644,120]
[336475007,1724863680253,-197.0,0.00035644,120]
[336475008,1724863680280,-197.0,0.00035644,120]
[336475009,1724863680305,-197.0,0.00035644,120]
[336475010,1724863680331,-197.0,0.00035644,120]
[336475011,1724863680356,-197.0,0.00035644,120]
[336475012,1724863680381,-197.0,0.00035644,120]
[336475013,1724863680407,-197.0,0.00035644,120]
[336475014,1724863680432,-197.0,0.00035644,120]
[336475015,1724863680457,-197.0,0.00035644,120]
[336475016,1724863680482,-197.0,0.00035644,120]
[336475017,1724863680506,-151.0,0.00035808,120]
[336475018,1724863680530,-171.36666667,0.00035918,120]
[336475019,1724863680553,-600.0,0.00036,120]
[336475020,1724863680578,-700.0,0.00036,120]
[336475021,1724863680605,-200.0,0.00036,30]
[336475022,1724863680635,-250.0,0.00036,30]
[336475023,1724863680681,-1643.78919851,0.0003609,120]
[336475024,1724863680718,-333.58457553,0.000368,30]
[336475025,1724863680743,-3589.0988,0.000368,48]
[336475026,1724863680768,-171.36666667,0.00036904,120]
[336475027,1724863680791,-200.0,0.00037,30]
[336475028,1724863680815,-15013.70830523,0.00037,30]
[336475029,1724863680838,-1127.32350922,0.0003707,31]
[336475030,1724863680862,-151.0,0.0003726,120]
[336475031,1724863680891,-2230.48834475,0.0003786,120]
[336475032,1724863680920,-171.36666667,0.0003789,120]
[336475033,1724863680944,-1398.0,0.00037898,44]
[336475034,1724863680968,-894.57231179,0.00038,60]
[336475035,1724863680992,-527.15504466,0.00038,30]
[336475036,1724863681017,-300.0,0.00038,120]
[336475037,1724863681041,-700.0,0.00038,120]
[336475038,1724863681065,-558.89167588,0.00038,30]
[336475039,1724863681089,-200.0,0.00038,30]
[336475040,1724863681113,-250.0,0.00038,30]
[336475041,1724863681139,-3831.36795085,0.00038356,120]
[336475042,1724863681166,-4720.17,0.00038356,120]
[336475043,1724863681190,-473.83729847,0.00038356,60]
[336475044,1724863681214,-3661.59766384,0.000386,30]
[336475045,1724863681241,-4720.17,0.00038712,120]
[336475046,1724863681265,-151.0,0.00038712,120]
[336475047,1724863681290,-171.36666667,0.00038877,120]
[336475048,1724863681313,-150.0,0.00039,30]
[336475049,1724863681482,-200.0,0.00039,30]
[336475050,1724863681509,-4720.17,0.00039068,120]
[336475051,1724863681534,-4720.17,0.00039424,120]
[336475052,1724863681559,-4720.17,0.0003978,120]
[336475053,1724863681583,-171.36666667,0.00039863,120]
[336475054,1724863681607,-267505.57971839,0.000399,120]
[336475055,1724863681633,-397.14841852,0.0004,120]
[336475056,1724863681657,-150.0,0.0004,30]
[336475057,1724863681680,-2012.15524454,0.0004,120]
[336475058,1724863681704,-411.99447872,0.0004,120]
[336475059,1724863681728,-2198.91612284,0.0004,120]
[336475060,1724863681751,-376.09818101,0.0004,30]
[336475061,1724863681776,-2518.31527336,0.0004,30]
[336475062,1724863681801,-200.0,0.0004,120]
[336475063,1724863681826,-151.90739655,0.0004,30]
[336475064,1724863681852,-1000.0,0.0004,120]
[336475065,1724863681879,-514.821806,0.0004,120]
[336475066,1724863681907,-300.2,0.0004,120]
[336475067,1724863681936,-10000.0,0.0004,40]
[336475068,1724863681963,-2571.62,0.0004,32]
[336475069,1724863681988,-1521.0,0.0004,120]
[336475070,1724863682012,-2155.87945769,0.0004,120]
[336475071,1724863682038,-5203.38717601,0.0004,120]
[336475072,1724863682063,-200.0,0.0004,30]
[336475073,1724863682087,-907.25670005,0.0004,120]
[336475074,1724863682112,-319.63558644,0.0004,120]
[336475075,1724863682137,-20000.0,0.0004,30]
[336475076,1724863682170,-215.41258196,0.0004,30]
[336475077,1724863682197,-366.54090657,0.0004,40]
[336475078,1724863682221,-250.0,0.0004,30]
[336475079,1724863682248,-4720.17,0.00040136,120]
[336475080,1724863682272,-151.0,0.00040164,120]
[336475081,1724863682298,-4720.17,0.00040493,120]
[336475082,1724863682323,-173.96784653,0.00040651,35]
[336475083,1724863682348,-4720.17,0.00040849,120]
[336475084,1724863682374,-171.36666667,0.00040849,120]
[336475085,1724863682401,-200.0,0.00041,30]
[336475086,1724863682426,-2435.42459136,0.00041,120]
[336475087,1724863682451,-200.0,0.00041,30]
[336475088,1724863682475,-3000.0,0.00041095,120]
[336475089,1724863682499,-1000.0,0.00041095,120]
[336475090,1724863682527,-1000.0,0.00041095,120]
[336475091,1724863682552,-1000.0,0.00041095,120]
[336475092,1724863682576,-265.99327948,0.00041095,120]
[336475093,1724863682601,-4720.17,0.00041205,120]
[336475094,1724863682627,-517.0,0.0004137,90]
[336475095,1724863682653,-2655.116978,0.00041553,120]
[336475096,1724863682679,-4720.17,0.00041561,120]
[336475097,1724863682705,-151.0,0.00041561,120]
[336475098,1724863682729,-205.508659,0.00041561,120]
[336475099,1724863682754,-205.508661,0.00041561,120]
[336475100,1724863682779,-180.29392486,0.0004159,30]
[336475101,1724863682804,-151.0,0.00041616,120]
[336475102,1724863682829,-1245.0,0.00041688,60]
[336475103,1724863682856,-171.36666667,0.00041836,120]
[336475104,1724863682884,-4720.17,0.00041917,120]
[336475105,1724863682911,-1399.123,0.00041948,54]
[336475106,1724863682938,-10000.0,0.00042,32]
[336475107,1724863682968,-2000.0,0.00042,120]
[336475108,1724863682992,-1536.5663876,0.00042,60]
[336475109,1724863683016,-20100.0,0.00042,120]
[336475110,1724863683046,-200.0,0.00042,30]
[336475111,1724863683072,-250.0,0.00042,30]
[336475112,1724863683100,-4720.17,0.00042273,120]
[336475113,1724863683123,-1685.41399322,0.000424,120]
[336475114,1724863683151,-365.3032941,0.000424,120]
[336475115,1724863683175,-3000.0,0.00042465,120]
[336475116,1724863683200,-264.01357733,0.0004258,120]
[336475117,1724863683227,-8000.0,0.000426,60]
[336475118,1724863683254,-4720.17,0.0004263,120]
[336475119,1724863683279,-3100.01503487,0.000428,60]
[336475120,1724863683306,-3056.60677893,0.000428,60]
[336475121,1724863683330,-1026.23429541,0.000428,60]
[336475122,1724863683356,-1456.11627261,0.000428,60]
[336475123,1724863683381,-171.36666667,0.00042822,120]
[336475124,1724863683408,-4720.17,0.00042986,120]
[336475125,1724863683432,-150.0,0.00043,60]
[336475126,1724863683456,-1000.0,0.00043,120]
[336475127,1724863683482,-1000.0,0.00043,60]
[336475128,1724863683507,-1024.19074847,0.00043,120]
[336475129,1724863683533,-1000.0,0.00043,120]
[336475130,1724863683558,-700.0,0.00043,60]
[336475131,1724863683585,-200.0,0.0004303,120]
[336475132,1724863683613,-151.0,0.00043068,120]
[336475133,1724863683640,-517.0,0.00043151,90]
[336475134,1724863683672,-4720.17,0.00043342,120]
[336475135,1724863683699,-1000.0,0.00043499,120]
[336475136,1724863683725,-8000.0,0.000436,60]
[336475137,1724863683751,-10000.0,0.00043688,120]
[336475138,1724863683776,-4720.17,0.00043698,120]
[336475139,1724863683801,-1000.0,0.000437,120]
[336475140,1724863683826,-1000.0,0.000437,60]
[336475141,1724863683853,-635.420904,0.00043764,120]
[336475142,1724863683879,-1528.9878,0.000438,90]
[336475143,1724863683907,-171.36666667,0.00043808,120]
[336475144,1724863683935,-3000.0,0.00043835,120]
[336475179,1724863831921,-500.0,0.0001853,2]
[336475181,1724863831932,-591.8739997,0.00018613,3]
[336475183,1724863831942,-500.0,0.00018713,2]
[336475185,1724863831952,-500.0,0.00018824,2]
[336475187,1724863831962,-135.56698849,0.000189,2]
[336475310,1724863838144,-537.63819842,0.000189,2]
[336475311,1724863838154,-354.530176,0.00018904,2]
[336475312,1724863838165,-500.0,0.00018936,2]
[336475313,1724863838175,-500.0,0.00019351,2]
[336475314,1724863838185,-500.0,0.00019426,2]
[336475315,1724863838195,-500.0,0.00019449,2]
[336475316,1724863838204,-7958.61881803,0.0001946,2]
[336475317,1724863838214,-9365.6585824,0.000195,2]
[336475318,1724863838224,-459.14234926,0.0001955,2]
[336475319,1724863838420,-36.12163984,0.0001955,2]
[336475320,1724863838430,-470.17341627,0.0001955,2]
[336475321,1724863838444,-29.82658373,0.0001955,2]
[336475322,1724863838455,-500.0,0.0001955,2]
[336475323,1724863838465,-197.05341627,0.0001955,2]
[336475324,1724863838476,-302.94658373,0.0001955,2]
[336475325,1724863838486,-257.28453426,0.0001955,2]
[336475386,1724863843025,-69665.43670194,0.0001955,2]
[336475388,1724863843035,-139845.442472,0.00019551,2]
[336475390,1724863843045,-69922.7212362,0.00019553,2]
[336475393,1724863843055,-69922.7212362,0.00019554,2]
[336475395,1724863843065,-549.95,0.00019559,2]
[336475397,1724863843074,-1129.57,0.00019559,2]
[336475399,1724863843085,-500.0,0.00019559,2]
[336475401,1724863843095,-500.0,0.00019559,2]
[336475403,1724863843106,-500.0,0.00019559,2]
[336475405,1724863843116,-500.0,0.00019559,2]
[336475407,1724863843126,-500.0,0.00019559,2]
[336475409,1724863843136,-500.0,0.0001956,2]
[336475411,1724863843146,-500.0,0.0001956,2]
[336475414,1724863843156,-500.0,0.0001956,2]